[Event "Live Chess"]
[Site "Chess.com"]
[Date "2023.05.21"]
[Round "-"]
[White "garyjc"]
[Black "Pandreq"]
[Result "0-1"]
[WhiteElo "1041"]
[BlackElo "1216"]
[TimeControl "300"]
[EndTime "5:24:09 PDT"]
[Termination "Pandreq won on time"]

1. e4 {[%clk 0:04:58]} 1... Nf6 {[%clk 0:04:57.2]} 2. Nc3 {[%clk 0:04:55.1]}
2... Nc6 {[%clk 0:04:55.9]} 3. d4 {[%clk 0:04:50.2]} 3... d6 {[%clk 0:04:54.8]}
4. d5 {[%clk 0:04:44.1]} 4... Ne5 {[%clk 0:04:50.7]} 5. Nf3 {[%clk 0:04:37.5]}
5... Nfd7 {[%clk 0:04:42.6]} 6. Nxe5 {[%clk 0:04:29.4]} 6... Nxe5 {[%clk
0:04:41.1]} 7. Bg5 {[%clk 0:04:10]} 7... h6 {[%clk 0:04:26.2]} 8. Bh4 {[%clk
0:04:04.5]} 8... Ng6 {[%clk 0:04:24.7]} 9. Bg3 {[%clk 0:03:59]} 9... e5 {[%clk
0:04:16.1]} 10. Be2 {[%clk 0:03:41.4]} 10... c6 {[%clk 0:03:27.4]} 11. O-O
{[%clk 0:03:34.8]} 11... cxd5 {[%clk 0:03:24]} 12. Nxd5 {[%clk 0:03:32.5]} 12...
Be7 {[%clk 0:03:16.8]} 13. Qd2 {[%clk 0:03:11.4]} 13... O-O {[%clk 0:03:12.3]}
14. a4 {[%clk 0:03:01.8]} 14... Bg5 {[%clk 0:03:07.2]} 15. Qd3 {[%clk
0:02:56.3]} 15... Be6 {[%clk 0:03:00.3]} 16. b4 {[%clk 0:02:49.4]} 16... Bxd5
{[%clk 0:02:58]} 17. Qxd5 {[%clk 0:02:43.7]} 17... b6 {[%clk 0:02:47.1]} 18. Bb5
{[%clk 0:02:31.8]} 18... Nf4 {[%clk 0:02:40.1]} 19. Bxf4 {[%clk 0:02:24.9]}
19... Bxf4 {[%clk 0:02:38.9]} 20. Rfd1 {[%clk 0:02:03.4]} 20... Rc8 {[%clk
0:02:16.2]} 21. c4 {[%clk 0:01:55.6]} 21... Qh4 {[%clk 0:02:02.1]} 22. g3 {[%clk
0:01:39.2]} 22... Qg5 {[%clk 0:02:00.7]} 23. Qxd6 {[%clk 0:01:31.2]} 23... Rcd8
{[%clk 0:01:50.6]} 24. Qc7 {[%clk 0:01:21.8]} 24... Rxd1+ {[%clk 0:01:39.3]} 25.
Rxd1 {[%clk 0:01:17.8]} 25... Kh7 {[%clk 0:01:26]} 26. Qxa7 {[%clk 0:01:13.2]}
26... Qg6 {[%clk 0:01:20.5]} 27. Bc6 {[%clk 0:01:03.3]} 27... Rc8 {[%clk
0:01:08.4]} 28. Bb5 {[%clk 0:00:55.5]} 28... f5 {[%clk 0:01:03]} 29. Kf1 {[%clk
0:00:35.8]} 29... Bg5 {[%clk 0:00:57.5]} 30. c5 {[%clk 0:00:16.4]} 30... bxc5
{[%clk 0:00:47.9]} 31. exf5 {[%clk 0:00:13]} 31... Qxf5 {[%clk 0:00:44.5]} 32.
Bd3 {[%clk 0:00:11.9]} 32... e4 {[%clk 0:00:42.3]} 33. Bc2 {[%clk 0:00:04.8]}
33... Rf8 {[%clk 0:00:38.3]} 0-1

[Event "Live Chess"]
[Site "Chess.com"]
[Date "2023.05.21"]
[Round "-"]
[White "mattihelenius2"]
[Black "LiamClery2020"]
[Result "0-1"]
[WhiteElo "491"]
[BlackElo "1988"]
[TimeControl "300"]
[EndTime "5:24:17 PDT"]
[Termination "LiamClery2020 won by resignation"]

1. d4 {[%clk 0:04:56.7]} 1... Nf6 {[%clk 0:04:59.9]} 2. c4 {[%clk 0:04:53.3]}
2... g6 {[%clk 0:04:58.7]} 3. Nf3 {[%clk 0:04:32.8]} 3... Bg7 {[%clk 0:04:52.2]}
4. Ne5 {[%clk 0:04:23.1]} 4... d6 {[%clk 0:04:50.3]} 5. Bg5 {[%clk 0:04:20.9]}
5... dxe5 {[%clk 0:04:49.3]} 6. dxe5 {[%clk 0:04:13.3]} 6... Qxd1+ {[%clk
0:04:48]} 7. Kxd1 {[%clk 0:04:10.4]} 7... Ne4 {[%clk 0:04:47.9]} 8. Be3 {[%clk
0:04:02.1]} 8... Nc6 {[%clk 0:04:46.6]} 9. Nc3 {[%clk 0:03:59.7]} 9... Nxc3+
{[%clk 0:04:44.8]} 10. bxc3 {[%clk 0:03:58.3]} 10... Be6 {[%clk 0:04:44.7]} 11.
Kc2 {[%clk 0:03:51.4]} 11... O-O-O {[%clk 0:04:44.6]} 12. Rd1 {[%clk 0:03:50.3]}
12... Bf5+ {[%clk 0:04:43.7]} 13. Kc1 {[%clk 0:03:45.9]} 13... Rxd1+ {[%clk
0:04:42.4]} 14. Kxd1 {[%clk 0:03:39.1]} 14... Bxe5 {[%clk 0:04:42.3]} 15. g3
{[%clk 0:03:33.3]} 15... Rd8+ {[%clk 0:04:41.4]} 16. Kc1 {[%clk 0:03:30.4]}
16... Bxc3 {[%clk 0:04:40.7]} 0-1

[Event "Live Chess"]
[Site "Chess.com"]
[Date "2023.05.21"]
[Round "-"]
[White "Leonid_Starozhilov"]
[Black "Long1968"]
[Result "1-0"]
[WhiteElo "2633"]
[BlackElo "954"]
[TimeControl "300"]
[EndTime "5:24:35 PDT"]
[Termination "Leonid_Starozhilov won on time"]

1. e4 {[%clk 0:04:58.9]} 1... e6 {[%clk 0:04:58.3]} 2. d4 {[%clk 0:04:57.5]}
2... d5 {[%clk 0:04:57.1]} 3. Bd3 {[%clk 0:04:56.5]} 3... dxe4 {[%clk
0:04:52.3]} 4. Bxe4 {[%clk 0:04:55.7]} 4... Nf6 {[%clk 0:04:47.5]} 5. Bf3 {[%clk
0:04:54.5]} 5... c5 {[%clk 0:04:32.4]} 6. Ne2 {[%clk 0:04:43]} 6... cxd4 {[%clk
0:04:25.7]} 7. Qxd4 {[%clk 0:04:40.1]} 7... Be7 {[%clk 0:04:12.2]} 8. Qxd8+
{[%clk 0:04:36.4]} 8... Bxd8 {[%clk 0:04:09.4]} 9. O-O {[%clk 0:04:36.3]} 9...
O-O {[%clk 0:04:04.7]} 10. c4 {[%clk 0:04:35.7]} 10... Nc6 {[%clk 0:03:59.7]}
11. Nbc3 {[%clk 0:04:34.7]} 11... a6 {[%clk 0:03:53.4]} 12. Bxc6 {[%clk
0:04:31]} 12... bxc6 {[%clk 0:03:49.8]} 13. Be3 {[%clk 0:04:29.5]} 13... Ng4
{[%clk 0:03:39]} 14. Bc5 {[%clk 0:04:27.6]} 14... Re8 {[%clk 0:03:35.8]} 15.
Rfd1 {[%clk 0:04:25.3]} 15... Bb7 {[%clk 0:03:22.3]} 16. h3 {[%clk 0:04:17.7]}
16... Ne5 {[%clk 0:03:07]} 17. b3 {[%clk 0:04:16.5]} 17... Be7 {[%clk
0:02:57.3]} 18. Bxe7 {[%clk 0:04:13.6]} 18... Rxe7 {[%clk 0:02:54.3]} 19. Na4
{[%clk 0:04:12.2]} 19... Kf8 {[%clk 0:02:20.4]} 20. Nc5 {[%clk 0:04:09.9]} 20...
Rb8 {[%clk 0:02:01.2]} 21. f4 {[%clk 0:04:07.5]} 21... Ng6 {[%clk 0:01:48.2]}
22. Nd7+ {[%clk 0:04:05.8]} 22... Rxd7 {[%clk 0:01:40.7]} 23. Rxd7 {[%clk
0:04:05.7]} 23... Ke8 {[%clk 0:01:34.8]} 24. Rad1 {[%clk 0:04:03.6]} 24... c5
{[%clk 0:01:18.9]} 25. Rc7 {[%clk 0:03:59.6]} 25... Nf8 {[%clk 0:00:59.3]} 26.
Nc3 {[%clk 0:03:53.4]} 26... Bc8 {[%clk 0:00:32.6]} 27. Ne4 {[%clk 0:03:48.4]}
27... Nd7 {[%clk 0:00:20.1]} 28. Nd6+ {[%clk 0:03:41.1]} 28... Kd8 {[%clk
0:00:10.9]} 29. Rxc8+ {[%clk 0:03:36.5]} 29... Rxc8 {[%clk 0:00:07.1]} 30. Nxc8
{[%clk 0:03:36.4]} 30... Kxc8 {[%clk 0:00:04.9]} 31. Kf2 {[%clk 0:03:35.6]} 1-0

[Event "Live Chess"]
[Site "Chess.com"]
[Date "2023.05.21"]
[Round "-"]
[White "domrobson"]
[Black "LiamBellwood"]
[Result "1-0"]
[WhiteElo "1741"]
[BlackElo "1913"]
[TimeControl "300"]
[EndTime "5:24:36 PDT"]
[Termination "domrobson won by resignation"]

1. d4 {[%clk 0:04:59.2]} 1... e6 {[%clk 0:04:59.9]} 2. c4 {[%clk 0:04:58.3]}
2... f5 {[%clk 0:04:59.3]} 3. g3 {[%clk 0:04:56.8]} 3... Nf6 {[%clk 0:04:59.2]}
4. Bg2 {[%clk 0:04:55.5]} 4... Be7 {[%clk 0:04:58.9]} 5. Nc3 {[%clk 0:04:54.9]}
5... O-O {[%clk 0:04:58.4]} 6. Nf3 {[%clk 0:04:54.5]} 6... d6 {[%clk 0:04:53.8]}
7. O-O {[%clk 0:04:54]} 7... a5 {[%clk 0:04:53.5]} 8. b3 {[%clk 0:04:52.9]} 8...
Ne4 {[%clk 0:04:52.9]} 9. Bb2 {[%clk 0:04:51.8]} 9... Nxc3 {[%clk 0:04:51.8]}
10. Bxc3 {[%clk 0:04:50.6]} 10... Qe8 {[%clk 0:04:51.7]} 11. Nd2 {[%clk
0:04:47.3]} 11... Qh5 {[%clk 0:04:39.9]} 12. f4 {[%clk 0:04:43.4]} 12... Bf6
{[%clk 0:04:26.9]} 13. e4 {[%clk 0:04:41.7]} 13... Qxd1 {[%clk 0:04:21.3]} 14.
Raxd1 {[%clk 0:04:39.5]} 14... c5 {[%clk 0:04:19.9]} 15. e5 {[%clk 0:04:37]}
15... Be7 {[%clk 0:04:07.1]} 16. exd6 {[%clk 0:04:31.4]} 16... Bxd6 {[%clk
0:04:07]} 17. dxc5 {[%clk 0:04:30.6]} 17... Bxc5+ {[%clk 0:04:06.9]} 18. Kh1
{[%clk 0:04:28.9]} 18... Nc6 {[%clk 0:04:01.2]} 19. Nf3 {[%clk 0:04:27.8]} 19...
a4 {[%clk 0:03:47.8]} 20. Ne5 {[%clk 0:04:25.4]} 20... Nxe5 {[%clk 0:03:45]} 21.
Bxe5 {[%clk 0:04:24.3]} 21... axb3 {[%clk 0:03:44.9]} 22. axb3 {[%clk
0:04:23.1]} 22... Ra3 {[%clk 0:03:41.4]} 23. Rb1 {[%clk 0:04:14.3]} 23... Bd7
{[%clk 0:03:35.6]} 24. b4 {[%clk 0:04:11.8]} 24... Be7 {[%clk 0:03:23.9]} 25.
Bxb7 {[%clk 0:04:11.1]} 25... Ra4 {[%clk 0:02:57.7]} 26. c5 {[%clk 0:04:08]}
26... Bb5 {[%clk 0:02:53.7]} 27. Rfd1 {[%clk 0:04:02.9]} 27... Bf6 {[%clk
0:02:42.3]} 28. c6 {[%clk 0:03:54.9]} 28... Bxe5 {[%clk 0:02:38.9]} 29. fxe5
{[%clk 0:03:52.2]} 29... Ba6 {[%clk 0:02:23]} 30. Bxa6 {[%clk 0:03:50.4]} 30...
Rxa6 {[%clk 0:02:22.9]} 31. b5 {[%clk 0:03:49.4]} 31... Rb6 {[%clk 0:02:22.4]}
32. c7 {[%clk 0:03:43.8]} 1-0

[Event "Live Chess"]
[Site "Chess.com"]
[Date "2023.05.21"]
[Round "-"]
[White "diana21strabt"]
[Black "AMCWAML"]
[Result "0-1"]
[WhiteElo "1749"]
[BlackElo "2324"]
[TimeControl "300"]
[EndTime "5:24:59 PDT"]
[Termination "AMCWAML won by resignation"]

1. e4 {[%clk 0:04:57.7]} 1... c5 {[%clk 0:04:59.2]} 2. Nf3 {[%clk 0:04:56.4]}
2... e6 {[%clk 0:04:58.4]} 3. d4 {[%clk 0:04:53.9]} 3... cxd4 {[%clk 0:04:58.3]}
4. Nxd4 {[%clk 0:04:51.7]} 4... a6 {[%clk 0:04:58.2]} 5. Nc3 {[%clk 0:04:47.4]}
5... Qc7 {[%clk 0:04:57.6]} 6. Be2 {[%clk 0:04:42.3]} 6... b5 {[%clk 0:04:55]}
7. a3 {[%clk 0:04:36.7]} 7... Bb7 {[%clk 0:04:54.4]} 8. f3 {[%clk 0:04:34.6]}
8... Nf6 {[%clk 0:04:51.3]} 9. O-O {[%clk 0:04:33.1]} 9... d5 {[%clk 0:04:50.7]}
10. exd5 {[%clk 0:04:31.6]} 10... Nxd5 {[%clk 0:04:48.6]} 11. Nxd5 {[%clk
0:04:29.1]} 11... Bxd5 {[%clk 0:04:48.5]} 12. Be3 {[%clk 0:04:26.2]} 12... Be7
{[%clk 0:04:47.4]} 13. c3 {[%clk 0:04:23.2]} 13... O-O {[%clk 0:04:46.7]} 14.
Bd3 {[%clk 0:04:18.2]} 14... Rd8 {[%clk 0:04:40.3]} 15. Bc2 {[%clk 0:04:17]}
15... Bc4 {[%clk 0:04:36]} 16. Re1 {[%clk 0:04:13.8]} 16... Nc6 {[%clk
0:04:35.2]} 17. Qb1 {[%clk 0:04:09.5]} 17... g6 {[%clk 0:04:32.8]} 18. Nxc6
{[%clk 0:04:08.4]} 18... Qxc6 {[%clk 0:04:32.3]} 19. Bd4 {[%clk 0:04:07.4]}
19... Bc5 {[%clk 0:04:24.4]} 20. Be4 {[%clk 0:04:05.2]} 20... Bd5 {[%clk
0:04:20]} 21. Bxd5 {[%clk 0:04:00.9]} 21... Rxd5 {[%clk 0:04:17.8]} 22. Qe4
{[%clk 0:03:58]} 22... Bxd4+ {[%clk 0:04:11.6]} 23. cxd4 {[%clk 0:03:56.9]}
23... Qb6 {[%clk 0:04:11.1]} 24. Rad1 {[%clk 0:03:54.1]} 24... Rad8 {[%clk
0:04:10.6]} 25. Qh4 {[%clk 0:03:41.4]} 25... Rxd4 {[%clk 0:04:07.5]} 26. Rxd4
{[%clk 0:03:38]} 26... Rxd4 {[%clk 0:04:03]} 27. Qf2 {[%clk 0:03:36]} 27... Qd6
{[%clk 0:03:57.1]} 28. h3 {[%clk 0:03:31.6]} 28... Rd2 {[%clk 0:03:55.5]} 29.
Qa7 {[%clk 0:03:23.2]} 29... Rxb2 {[%clk 0:03:47.8]} 30. Rc1 {[%clk 0:03:21.5]}
30... Qd2 {[%clk 0:03:08]} 31. Qb8+ {[%clk 0:03:12.2]} 31... Kg7 {[%clk
0:03:06.8]} 32. Qe5+ {[%clk 0:03:09.6]} 32... f6 {[%clk 0:02:59.6]} 33. Rc7+
{[%clk 0:03:02.6]} 33... Kh6 {[%clk 0:02:58.3]} 34. Qg3 {[%clk 0:02:55.3]} 34...
Qg5 {[%clk 0:02:18.8]} 35. Qxg5+ {[%clk 0:02:49]} 35... Kxg5 {[%clk 0:02:16.9]}
36. Rxh7 {[%clk 0:02:46.5]} 36... Ra2 {[%clk 0:02:10.4]} 37. Re7 {[%clk
0:02:39.8]} 37... e5 {[%clk 0:02:08.7]} 38. Kh2 {[%clk 0:02:22.6]} 38... Rxa3
{[%clk 0:02:04.9]} 39. Kg3 {[%clk 0:02:21.7]} 39... Kf5 {[%clk 0:01:55.3]} 40.
Rd7 {[%clk 0:02:13.3]} 40... a5 {[%clk 0:01:53.3]} 41. Rd5 {[%clk 0:02:11.8]}
41... Rb3 {[%clk 0:01:50.8]} 42. Kf2 {[%clk 0:02:08.1]} 42... a4 {[%clk
0:01:47.6]} 43. g4+ {[%clk 0:02:07]} 43... Kf4 {[%clk 0:01:46.5]} 44. Rd2 {[%clk
0:02:04]} 44... Rxf3+ {[%clk 0:01:45.2]} 45. Kg2 {[%clk 0:02:03.1]} 45... Rg3+
{[%clk 0:01:44.4]} 46. Kh2 {[%clk 0:02:02.2]} 46... Rb3 {[%clk 0:01:43.5]} 47.
Rf2+ {[%clk 0:02:00.8]} 47... Kg5 {[%clk 0:01:42.5]} 48. h4+ {[%clk 0:01:59.3]}
48... Kxh4 {[%clk 0:01:38.1]} 49. Rxf6 {[%clk 0:01:58.2]} 49... g5 {[%clk
0:01:37.5]} 50. Rh6+ {[%clk 0:01:54.6]} 50... Kxg4 {[%clk 0:01:36.6]} 51. Re6
{[%clk 0:01:53.6]} 51... Rb2+ {[%clk 0:01:35.6]} 52. Kg1 {[%clk 0:01:52.4]}
52... Kf5 {[%clk 0:01:28.2]} 53. Rc6 {[%clk 0:01:50.1]} 53... a3 {[%clk
0:01:27.1]} 54. Ra6 {[%clk 0:01:48]} 54... a2 {[%clk 0:01:26]} 0-1

[Event "Live Chess"]
[Site "Chess.com"]
[Date "2023.05.21"]
[Round "-"]
[White "JanMur7"]
[Black "CrypticF1"]
[Result "1-0"]
[WhiteElo "1956"]
[BlackElo "446"]
[TimeControl "300"]
[EndTime "5:25:07 PDT"]
[Termination "JanMur7 won by checkmate"]

1. e4 {[%clk 0:04:58.8]} 1... c6 {[%clk 0:04:56.5]} 2. d3 {[%clk 0:04:57.9]}
2... d6 {[%clk 0:04:50.4]} 3. f4 {[%clk 0:04:56]} 3... Nf6 {[%clk 0:04:42.4]} 4.
Nf3 {[%clk 0:04:54.6]} 4... c5 {[%clk 0:04:32.8]} 5. g3 {[%clk 0:04:49.8]} 5...
Nc6 {[%clk 0:04:29.3]} 6. Bg2 {[%clk 0:04:44.1]} 6... g6 {[%clk 0:04:22.8]} 7.
O-O {[%clk 0:04:42.2]} 7... Bg7 {[%clk 0:04:20.7]} 8. c3 {[%clk 0:04:40.7]} 8...
O-O {[%clk 0:04:19.1]} 9. h3 {[%clk 0:04:39.3]} 9... e5 {[%clk 0:04:16.2]} 10.
fxe5 {[%clk 0:04:36]} 10... dxe5 {[%clk 0:04:15.4]} 11. Be3 {[%clk 0:04:32.4]}
11... b6 {[%clk 0:04:05.7]} 12. Kh2 {[%clk 0:04:29.3]} 12... Be6 {[%clk
0:03:58.2]} 13. Nbd2 {[%clk 0:04:23.5]} 13... Qxd3 {[%clk 0:03:47.9]} 14. Re1
{[%clk 0:04:16.2]} 14... Nxe4 {[%clk 0:03:44.8]} 15. Bf1 {[%clk 0:03:59.1]}
15... Qd5 {[%clk 0:03:20.3]} 16. c4 {[%clk 0:03:44.8]} 16... Qd6 {[%clk
0:03:09.8]} 17. Nxe4 {[%clk 0:03:42.3]} 17... Qxd1 {[%clk 0:03:06]} 18. Raxd1
{[%clk 0:03:42.2]} 18... Rad8 {[%clk 0:03:00.2]} 19. b3 {[%clk 0:03:10.2]} 19...
Rxd1 {[%clk 0:02:53.7]} 20. Rxd1 {[%clk 0:03:10.1]} 20... Rd8 {[%clk 0:02:52.5]}
21. Rxd8+ {[%clk 0:03:08.5]} 21... Nxd8 {[%clk 0:02:51.4]} 22. Nd6 {[%clk
0:03:00.6]} 22... Bf8 {[%clk 0:02:42]} 23. Nb5 {[%clk 0:02:44.6]} 23... a6
{[%clk 0:02:22.6]} 24. Nc7 {[%clk 0:02:37.7]} 24... Bd7 {[%clk 0:01:56.6]} 25.
Nxe5 {[%clk 0:02:35.1]} 25... Bc8 {[%clk 0:01:47.8]} 26. Nd5 {[%clk 0:02:26.7]}
26... Bd6 {[%clk 0:01:28.5]} 27. Nd3 {[%clk 0:02:19]} 27... Ne6 {[%clk
0:01:23.8]} 28. N3f4 {[%clk 0:02:10.2]} 28... Nxf4 {[%clk 0:01:18.7]} 29. Bxf4
{[%clk 0:02:04.5]} 29... Bxf4 {[%clk 0:01:17.2]} 30. Nxf4 {[%clk 0:02:01.3]}
30... g5 {[%clk 0:01:12.3]} 31. Nd5 {[%clk 0:01:59.1]} 31... f5 {[%clk
0:01:04.2]} 32. Ne7+ {[%clk 0:01:57.1]} 32... Kf7 {[%clk 0:01:02.2]} 33. Nxc8
{[%clk 0:01:57]} 33... Ke6 {[%clk 0:01:01.4]} 34. Nxb6 {[%clk 0:01:55]} 34...
Ke5 {[%clk 0:00:59.7]} 35. Bd3 {[%clk 0:01:53.2]} 35... Kd4 {[%clk 0:00:58.9]}
36. Bxf5 {[%clk 0:01:51.7]} 36... Kc3 {[%clk 0:00:57.5]} 37. Nd7 {[%clk
0:01:50.6]} 37... Kb2 {[%clk 0:00:56.8]} 38. Nxc5 {[%clk 0:01:49.6]} 38... Kxa2
{[%clk 0:00:56.6]} 39. Nxa6 {[%clk 0:01:48.9]} 39... Kxb3 {[%clk 0:00:56.3]} 40.
Bxh7 {[%clk 0:01:48]} 40... Kxc4 {[%clk 0:00:55.9]} 41. h4 {[%clk 0:01:46.9]}
41... Kd4 {[%clk 0:00:55.4]} 42. hxg5 {[%clk 0:01:46]} 42... Ke5 {[%clk
0:00:54.3]} 43. g6 {[%clk 0:01:45.2]} 43... Kf6 {[%clk 0:00:53.9]} 44. g7 {[%clk
0:01:45.1]} 44... Kxg7 {[%clk 0:00:53.4]} 45. Be4 {[%clk 0:01:44.1]} 45... Kf6
{[%clk 0:00:52.7]} 46. Kh3 {[%clk 0:01:43.6]} 46... Kg5 {[%clk 0:00:52.2]} 47.
g4 {[%clk 0:01:42.9]} 47... Kf4 {[%clk 0:00:51.5]} 48. Kh4 {[%clk 0:01:42.8]}
48... Kxe4 {[%clk 0:00:50.7]} 49. g5 {[%clk 0:01:42.3]} 49... Kf5 {[%clk
0:00:50.4]} 50. Kh5 {[%clk 0:01:42.2]} 50... Ke6 {[%clk 0:00:49.7]} 51. g6
{[%clk 0:01:41.2]} 51... Kf6 {[%clk 0:00:48.5]} 52. Kh6 {[%clk 0:01:41.1]} 52...
Ke7 {[%clk 0:00:47.7]} 53. g7 {[%clk 0:01:40.3]} 53... Kd6 {[%clk 0:00:46]} 54.
Kh7 {[%clk 0:01:40.2]} 54... Kc6 {[%clk 0:00:45.7]} 55. g8=Q {[%clk 0:01:40.1]}
55... Kb6 {[%clk 0:00:45.3]} 56. Qb3+ {[%clk 0:01:38]} 56... Kxa6 {[%clk
0:00:44.1]} 57. Qb4 {[%clk 0:01:37.1]} 57... Ka7 {[%clk 0:00:43.2]} 58. Qb5
{[%clk 0:01:37]} 58... Ka8 {[%clk 0:00:42.4]} 59. Kg7 {[%clk 0:01:36.9]} 59...
Ka7 {[%clk 0:00:41.3]} 60. Kf7 {[%clk 0:01:36.8]} 60... Ka8 {[%clk 0:00:41]} 61.
Ke7 {[%clk 0:01:36.7]} 61... Ka7 {[%clk 0:00:40.8]} 62. Kd7 {[%clk 0:01:36.6]}
62... Ka8 {[%clk 0:00:40.6]} 63. Kc7 {[%clk 0:01:36.5]} 63... Ka7 {[%clk
0:00:40.4]} 64. Qb7# {[%clk 0:01:36.4]} 1-0

[Event "Live Chess"]
[Site "Chess.com"]
[Date "2023.05.21"]
[Round "-"]
[White "OleksiyJr1"]
[Black "tpm07"]
[Result "0-1"]
[WhiteElo "1029"]
[BlackElo "1942"]
[TimeControl "300"]
[EndTime "5:25:14 PDT"]
[Termination "tpm07 won by resignation"]

1. e4 {[%clk 0:04:58]} 1... e5 {[%clk 0:04:57.7]} 2. Nf3 {[%clk 0:04:56.2]} 2...
Nc6 {[%clk 0:04:53]} 3. Bc4 {[%clk 0:04:54.7]} 3... Nf6 {[%clk 0:04:51.2]} 4.
Nc3 {[%clk 0:04:53.6]} 4... Nxe4 {[%clk 0:04:48.8]} 5. Nxe4 {[%clk 0:04:52]}
5... d5 {[%clk 0:04:47.6]} 6. Bxd5 {[%clk 0:04:51.9]} 6... Qxd5 {[%clk
0:04:46.3]} 7. Nc3 {[%clk 0:04:51.1]} 7... Qa5 {[%clk 0:04:38.9]} 8. d3 {[%clk
0:04:46.7]} 8... Bg4 {[%clk 0:04:36.4]} 9. O-O {[%clk 0:04:25]} 9... O-O-O
{[%clk 0:04:31.8]} 10. Be3 {[%clk 0:04:23]} 10... f5 {[%clk 0:04:12.7]} 11. h3
{[%clk 0:04:18.2]} 11... Bh5 {[%clk 0:04:10.7]} 12. Bg5 {[%clk 0:04:14.8]} 12...
Rd6 {[%clk 0:03:50.4]} 13. g4 {[%clk 0:04:04.6]} 13... fxg4 {[%clk 0:03:43]} 14.
hxg4 {[%clk 0:03:45.8]} 14... Bxg4 {[%clk 0:03:40.6]} 15. Qe2 {[%clk 0:03:45]}
15... Nd4 {[%clk 0:03:35.3]} 16. Qe4 {[%clk 0:03:35.8]} 16... Bxf3 {[%clk
0:03:20.1]} 0-1

[Event "Live Chess"]
[Site "Chess.com"]
[Date "2023.05.21"]
[Round "-"]
[White "Conradical12"]
[Black "MarkLim1"]
[Result "0-1"]
[WhiteElo "1567"]
[BlackElo "1707"]
[TimeControl "300"]
[EndTime "5:25:20 PDT"]
[Termination "MarkLim1 won by resignation"]

1. e4 {[%clk 0:04:57]} 1... e6 {[%clk 0:04:57.2]} 2. d4 {[%clk 0:04:54.9]} 2...
d5 {[%clk 0:04:56.4]} 3. Nc3 {[%clk 0:04:52.7]} 3... Nf6 {[%clk 0:04:55.3]} 4.
e5 {[%clk 0:04:51.1]} 4... Nfd7 {[%clk 0:04:54.5]} 5. Nf3 {[%clk 0:04:46.5]}
5... c5 {[%clk 0:04:52.2]} 6. Bf4 {[%clk 0:04:43.7]} 6... Nc6 {[%clk 0:04:51.3]}
7. Be2 {[%clk 0:04:41.6]} 7... a6 {[%clk 0:04:49.9]} 8. a4 {[%clk 0:04:37.3]}
8... Qb6 {[%clk 0:04:48.3]} 9. Rb1 {[%clk 0:04:34.9]} 9... cxd4 {[%clk
0:04:46.2]} 10. Nxd4 {[%clk 0:04:19.5]} 10... Qxd4 {[%clk 0:04:42.2]} 11. Qxd4
{[%clk 0:04:16]} 11... Nxd4 {[%clk 0:04:41.3]} 12. O-O {[%clk 0:04:14.6]} 12...
Nxc2 {[%clk 0:04:31.8]} 13. Bd3 {[%clk 0:04:12.7]} 13... Nb4 {[%clk 0:04:30.4]}
14. Ne2 {[%clk 0:04:04.3]} 14... Nxd3 {[%clk 0:04:28.5]} 0-1

[Event "Live Chess"]
[Site "Chess.com"]
[Date "2023.05.21"]
[Round "-"]
[White "Oleg03082013"]
[Black "SupremeTactician"]
[Result "0-1"]
[WhiteElo "1123"]
[BlackElo "2239"]
[TimeControl "300"]
[EndTime "5:25:25 PDT"]
[Termination "SupremeTactician won by resignation"]

1. e4 {[%clk 0:04:54.8]} 1... e5 {[%clk 0:04:55.2]} 2. Nf3 {[%clk 0:04:53.3]}
2... Nc6 {[%clk 0:04:52.5]} 3. Bc4 {[%clk 0:04:48.1]} 3... Bc5 {[%clk
0:04:50.5]} 4. Nc3 {[%clk 0:04:41.6]} 4... Nf6 {[%clk 0:04:47.9]} 5. d3 {[%clk
0:04:40.7]} 5... d6 {[%clk 0:04:45.9]} 6. Bg5 {[%clk 0:04:38.3]} 6... Be6 {[%clk
0:04:42.9]} 7. Bxe6 {[%clk 0:04:36.3]} 7... fxe6 {[%clk 0:04:40.3]} 8. O-O
{[%clk 0:04:36.2]} 8... O-O {[%clk 0:04:38.3]} 9. Qd2 {[%clk 0:04:34.3]} 9...
Qe8 {[%clk 0:04:26.6]} 10. Bxf6 {[%clk 0:04:26.1]} 10... Rxf6 {[%clk 0:04:21.3]}
11. Nh4 {[%clk 0:04:24.3]} 11... Qf7 {[%clk 0:04:15.7]} 12. Qg5 {[%clk
0:04:19.3]} 12... Rxf2 {[%clk 0:04:07.9]} 13. Rxf2 {[%clk 0:04:16.3]} 13...
Qxf2+ {[%clk 0:04:03.5]} 14. Kh1 {[%clk 0:04:11.6]} 14... Rf8 {[%clk 0:04:02.9]}
15. Nf3 {[%clk 0:04:09.4]} 15... Nd4 {[%clk 0:03:55.7]} 16. Rg1 {[%clk
0:04:05.7]} 16... Nxf3 {[%clk 0:03:51.3]} 17. gxf3 {[%clk 0:04:02.5]} 17...
Qxf3+ {[%clk 0:03:49.1]} 18. Rg2 {[%clk 0:03:58.9]} 18... Qf1+ {[%clk
0:03:46.7]} 19. Rg1 {[%clk 0:03:57.4]} 19... Bxg1 {[%clk 0:03:46.6]} 20. Qxg1
{[%clk 0:03:56]} 20... Qxg1+ {[%clk 0:03:45.3]} 21. Kxg1 {[%clk 0:03:54.7]}
21... Rf4 {[%clk 0:03:43.8]} 22. Kg2 {[%clk 0:03:52.6]} 22... g5 {[%clk
0:03:41.4]} 23. Ne2 {[%clk 0:03:50.2]} 23... Rf6 {[%clk 0:03:39.4]} 24. Kg3
{[%clk 0:03:48.4]} 24... Kf7 {[%clk 0:03:39.3]} 25. Ng1 {[%clk 0:03:17.8]} 25...
Kg6 {[%clk 0:03:39.2]} 26. Nf3 {[%clk 0:03:16.2]} 26... h5 {[%clk 0:03:35.2]}
27. h3 {[%clk 0:03:14.7]} 27... Rf4 {[%clk 0:03:31.9]} 28. h4 {[%clk 0:03:12.6]}
28... gxh4+ {[%clk 0:03:26.3]} 29. Nxh4+ {[%clk 0:03:11.4]} 29... Kf6 {[%clk
0:03:24.3]} 30. Ng2 {[%clk 0:03:09.2]} 30... Rg4+ {[%clk 0:03:22.8]} 31. Kf3
{[%clk 0:03:07.6]} 31... Kg5 {[%clk 0:03:16.6]} 32. Ne1 {[%clk 0:03:05.8]} 32...
h4 {[%clk 0:03:12.6]} 33. Ke3 {[%clk 0:03:04.3]} 33... h3 {[%clk 0:03:06.2]} 34.
Nf3+ {[%clk 0:03:02.5]} 34... Kh5 {[%clk 0:03:04.6]} 35. Kf2 {[%clk 0:03:01]}
35... Rf4 {[%clk 0:02:57.1]} 36. Kg3 {[%clk 0:02:58.8]} 36... Rxf3+ {[%clk
0:02:54]} 37. Kxf3 {[%clk 0:02:55.9]} 37... Kh4 {[%clk 0:02:53.9]} 38. Kf2
{[%clk 0:02:54.6]} 38... Kg4 {[%clk 0:02:52.3]} 39. Kg1 {[%clk 0:02:51.6]} 39...
Kf3 {[%clk 0:02:50.9]} 40. Kh2 {[%clk 0:02:50.3]} 40... Ke2 {[%clk 0:02:49.8]}
41. Kxh3 {[%clk 0:02:48.9]} 41... Kd2 {[%clk 0:02:48.9]} 42. Kg4 {[%clk
0:02:47.1]} 42... Kxc2 {[%clk 0:02:47.3]} 43. Kg5 {[%clk 0:02:45.3]} 43... Kxd3
{[%clk 0:02:46.1]} 44. Kf6 {[%clk 0:02:43.1]} 44... Kxe4 {[%clk 0:02:44.9]} 45.
Kxe6 {[%clk 0:02:41.3]} 45... Kd4 {[%clk 0:02:43.9]} 46. Kd7 {[%clk 0:02:40.4]}
46... e4 {[%clk 0:02:42.8]} 47. Kxc7 {[%clk 0:02:39.7]} 47... e3 {[%clk
0:02:42.7]} 48. Kxb7 {[%clk 0:02:39]} 48... e2 {[%clk 0:02:42.6]} 49. Kxa7
{[%clk 0:02:38.2]} 49... e1=Q {[%clk 0:02:42.5]} 50. b4 {[%clk 0:02:37.1]} 50...
Qa1 {[%clk 0:02:42.4]} 51. b5 {[%clk 0:02:36]} 51... Qxa2+ {[%clk 0:02:41.7]}
52. Kb6 {[%clk 0:02:34.5]} 52... Qb3 {[%clk 0:02:38.3]} 53. Kc6 {[%clk
0:02:32.7]} 53... Kc4 {[%clk 0:02:37.1]} 54. b6 {[%clk 0:02:31.5]} 54... d5
{[%clk 0:02:35.7]} 55. b7 {[%clk 0:02:30.3]} 55... d4 {[%clk 0:02:35.2]} 56. Kc7
{[%clk 0:02:29.3]} 56... d3 {[%clk 0:02:34.3]} 57. b8=Q {[%clk 0:02:25.9]} 57...
Qxb8+ {[%clk 0:02:34.2]} 58. Kxb8 {[%clk 0:02:24.8]} 58... d2 {[%clk 0:02:33.7]}
0-1